[Event "Titled Tuesday Blitz June 20 Late 2023"]
[White "Liang, Awonder"]
[Black "Mcconnell, Sullivan"]
[WhiteFideId "2056437"]
[BlackFideId "30934885"]
[WhiteElo "2508"]
[BlackElo "2706"]
[Result "1-0"]
[Round "3"]
[TimeControl "180+2"]
[Date "2023.06.20"]
[WhiteClock "0:02:12"]
[BlackClock "0:01:23"]
[Board "5"]

1. Nh3 {[%clk 0:02:55]}  Nh6 {[%clk 0:02:59]} 2. Ng5 {[%clk 0:02:54]}  Ng4 {[%clk 0:02:56]} 3. Nf3 {[%clk 0:02:54]}  Nf6 {[%clk 0:02:57]} 4. Ng1 {[%clk 0:02:54]}  Ng8 {[%clk 0:02:56]} 5. a4 {[%clk 0:02:55]}  a5 {[%clk 0:02:55]} 6. Nh3 {[%clk 0:02:55]}  Nh6 {[%clk 0:02:55]} 7. Ng5 {[%clk 0:02:54]}  Ng4 {[%clk 0:02:56]} 8. Nf3 {[%clk 0:02:54]}  Nf6 {[%clk 0:02:56]} 9. Ng1 {[%clk 0:02:55]}  Ng8 {[%clk 0:02:56]} 10. h3 {[%clk 0:02:55]}  h6 {[%clk 0:02:56]} 11. h4 {[%clk 0:02:56]}  h5 {[%clk 0:02:57]} 12. Nh3 {[%clk 0:02:56]}  Nh6 {[%clk 0:02:57]} 13. Ng5 {[%clk 0:02:57]}  Ng4 {[%clk 0:02:58]} 14. Nf3 {[%clk 0:02:57]}  Nf6 {[%clk 0:02:58]} 15. Ng1 {[%clk 0:02:58]}  Ng8 {[%clk 0:02:59]} 16. Ra2 {[%clk 0:02:58]}  Ra7 {[%clk 0:02:59]} 17. Nh3 {[%clk 0:02:58]}  Nh6 {[%clk 0:02:59]} 18. Ng5 {[%clk 0:02:58]}  Ng4 {[%clk 0:02:59]} 19. Nf3 {[%clk 0:02:59]}  Nf6 {[%clk 0:03:00]} 20. Ng1 {[%clk 0:03:00]}  Ng8 {[%clk 0:03:00]} 21. Ra3 {[%clk 0:03:00]}  Ra6 {[%clk 0:03:00]} 22. Nh3 {[%clk 0:03:01]}  Nh6 {[%clk 0:03:01]} 23. Ng5 {[%clk 0:03:01]}  Ng4 {[%clk 0:03:02]} 24. Nf3 {[%clk 0:03:02]}  Nf6 {[%clk 0:03:02]} 25. Ng1 {[%clk 0:03:03]}  Ng8 {[%clk 0:03:03]} 26. d3 {[%clk 0:03:03]}  d6 {[%clk 0:03:03]} 27. Nh3 {[%clk 0:03:03]}  Nh6 {[%clk 0:03:03]} 28. Ng5 {[%clk 0:03:04]}  Ng4 {[%clk 0:03:03]} 29. Nf3 {[%clk 0:03:05]}  Nf6 {[%clk 0:03:04]} 30. Ng1 {[%clk 0:03:05]}  Ng8 {[%clk 0:03:04]} 31. Ra1 {[%clk 0:03:05]}  Ra8 {[%clk 0:03:05]} 32. Nc3 {[%clk 0:03:06]}  Nc6 {[%clk 0:03:05]} 33. Nb5 {[%clk 0:03:07]}  Nb4 {[%clk 0:03:05]} 34. Na3 {[%clk 0:03:06]}  Na6 {[%clk 0:03:05]} 35. Bd2 {[%clk 0:03:07]}  c6 {[%clk 0:03:04]} 36. Nb1 {[%clk 0:03:06]}  Nb8 {[%clk 0:03:03]} 37. Bc1 {[%clk 0:03:06]}  e5 {[%clk 0:03:03]} 38. e4 {[%clk 0:03:06]}  Be6 {[%clk 0:03:03]} 39. Nh3 {[%clk 0:03:06]}  Nd7 {[%clk 0:03:03]} 40. Ng5 {[%clk 0:03:07]}  Ngf6 {[%clk 0:03:03]} 41. Nc3 {[%clk 0:03:06]}  Bg4 {[%clk 0:03:02]} 42. f3 {[%clk 0:03:06]}  Be6 {[%clk 0:03:02]} 43. Be3 {[%clk 0:03:07]}  d5 {[%clk 0:03:01]} 44. Bf2 {[%clk 0:03:06]}  Bb4 {[%clk 0:03:01]} 45. Ke2 {[%clk 0:02:54]}  Qe7 {[%clk 0:02:58]} 46. Na2 {[%clk 0:02:54]}  Ng4 {[%clk 0:02:52]} 47. Nxe6 {[%clk 0:02:50]}  Qxe6 {[%clk 0:02:52]} 48. Nxb4 {[%clk 0:02:49]}  Nxf2 {[%clk 0:02:52]} 49. Nxd5 {[%clk 0:02:41]}  cxd5 {[%clk 0:02:50]} 50. Kxf2 {[%clk 0:02:40]}  Qb6+ {[%clk 0:02:50]} 51. Kg3 {[%clk 0:02:41]}  Nf6 {[%clk 0:02:42]} 52. b3 {[%clk 0:02:40]}  dxe4 {[%clk 0:02:38]} 53. dxe4 {[%clk 0:02:37]}  O-O {[%clk 0:02:38]} 54. Bc4 {[%clk 0:02:37]}  Rad8 {[%clk 0:02:38]} 55. Qe2 {[%clk 0:02:38]}  Nd7 {[%clk 0:02:37]} 56. Rad1 {[%clk 0:02:37]}  Qf6 {[%clk 0:02:37]} 57. Kf2 {[%clk 0:02:35]}  Nc5 {[%clk 0:02:36]} 58. g3 {[%clk 0:02:36]}  b6 {[%clk 0:02:36]} 59. Kg2 {[%clk 0:02:36]}  Qg6 {[%clk 0:02:33]} 60. Rxd8 {[%clk 0:02:34]}  Rxd8 {[%clk 0:02:33]} 61. Rd1 {[%clk 0:02:35]}  Rd6 {[%clk 0:02:33]} 62. Rd5 {[%clk 0:02:34]}  Qh6 {[%clk 0:02:29]} 63. Qd1 {[%clk 0:02:31]}  Rf6 {[%clk 0:02:24]} 64. Qd2 {[%clk 0:02:28]}  Qg6 {[%clk 0:02:04]} 65. Qg5 {[%clk 0:02:28]}  Kh7 {[%clk 0:01:44]} 66. Qxg6+ {[%clk 0:02:27]}  Kxg6 {[%clk 0:01:45]} 67. Rxe5 {[%clk 0:02:27]}  Rc6 {[%clk 0:01:46]} 68. Rg5+ {[%clk 0:02:26]}  Kh6 {[%clk 0:01:41]} 69. Bxf7 {[%clk 0:02:26]}  g6 {[%clk 0:01:42]} 70. Bd5 {[%clk 0:02:25]}  Rd6 {[%clk 0:01:42]} 71. Kf2 {[%clk 0:02:23]}  Na6 {[%clk 0:01:42]} 72. Re5 {[%clk 0:02:23]}  Nb4 {[%clk 0:01:42]} 73. Re6 {[%clk 0:02:15]}  Rd7 {[%clk 0:01:41]} 74. c4 {[%clk 0:02:12]}  Nd3+ {[%clk 0:01:37]} 75. Ke3 {[%clk 0:02:12]}  Nc5 {[%clk 0:01:23]} 76. Rxb6 {[%clk 0:02:12]} 1-0


[Site "https://www.chess.com"]

[Event "Titled Tuesday Blitz June 20 Late 2023"]
[White "Turayev, Shahruh"]
[Black "Andreikin, Dmitry"]
[WhiteFideId "14003856"]
[BlackFideId "4158814"]
[WhiteElo "2113"]
[BlackElo "2736"]
[Result "1-0"]
[Round "3"]
[TimeControl "180+2"]
[Date "2023.06.20"]
[WhiteClock "0:00:25"]
[BlackClock "0:01:36"]
[Board "8"]

1. e4 {[%clk 0:03:00]}  c5 {[%clk 0:02:59]} 2. Nc3 {[%clk 0:03:00]}  g6 {[%clk 0:02:59]} 3. d4 {[%clk 0:03:00]}  Bg7 {[%clk 0:02:55]} 4. dxc5 {[%clk 0:03:00]}  Qa5 {[%clk 0:02:54]} 5. Bd2 {[%clk 0:03:00]}  Qxc5 {[%clk 0:02:52]} 6. Nd5 {[%clk 0:03:00]}  Nf6 {[%clk 0:02:50]} 7. Bb4 {[%clk 0:03:00]}  Qc6 {[%clk 0:02:46]} 8. Bb5 {[%clk 0:03:00]}  Nxd5 {[%clk 0:02:42]} 9. Bxc6 {[%clk 0:02:53]}  Nxb4 {[%clk 0:02:42]} 10. Ba4 {[%clk 0:02:35]}  Bxb2 {[%clk 0:02:41]} 11. Rb1 {[%clk 0:02:36]}  Bc3+ {[%clk 0:02:40]} 12. Kf1 {[%clk 0:02:36]}  N4c6 {[%clk 0:02:38]} 13. Ne2 {[%clk 0:02:30]}  Bg7 {[%clk 0:02:38]} 14. g3 {[%clk 0:02:27]}  b6 {[%clk 0:02:35]} 15. Kg2 {[%clk 0:02:27]}  Bb7 {[%clk 0:02:35]} 16. f3 {[%clk 0:02:27]}  Na6 {[%clk 0:02:32]} 17. c3 {[%clk 0:02:25]}  Nc5 {[%clk 0:02:31]} 18. Bc2 {[%clk 0:02:25]}  Ne5 {[%clk 0:02:31]} 19. Nd4 {[%clk 0:02:17]}  O-O {[%clk 0:02:30]} 20. Re1 {[%clk 0:02:05]}  Rac8 {[%clk 0:02:30]} 21. f4 {[%clk 0:01:55]}  Nc4 {[%clk 0:02:26]} 22. Kg1 {[%clk 0:01:46]}  Rfd8 {[%clk 0:02:23]} 23. f5 {[%clk 0:01:37]}  Ne5 {[%clk 0:02:21]} 24. fxg6 {[%clk 0:01:32]}  hxg6 {[%clk 0:02:20]} 25. Qe2 {[%clk 0:01:22]}  e6 {[%clk 0:02:18]} 26. Rbd1 {[%clk 0:01:14]}  d5 {[%clk 0:02:12]} 27. exd5 {[%clk 0:01:10]}  Bxd5 {[%clk 0:02:13]} 28. Rf1 {[%clk 0:00:59]}  Bc4 {[%clk 0:02:09]} 29. Qe3 {[%clk 0:00:53]}  Bxf1 {[%clk 0:02:07]} 30. Rxf1 {[%clk 0:00:54]}  Rc7 {[%clk 0:02:02]} 31. Qf4 {[%clk 0:00:52]}  Rcd7 {[%clk 0:01:55]} 32. Nf3 {[%clk 0:00:43]}  Nxf3+ {[%clk 0:01:52]} 33. Qxf3 {[%clk 0:00:43]}  Rc7 {[%clk 0:01:44]} 34. h4 {[%clk 0:00:42]}  Nd7 {[%clk 0:01:44]} 35. Qxf7+ {[%clk 0:00:41]}  Kh8 {[%clk 0:01:44]} 36. Qxg6 {[%clk 0:00:38]}  Nf8 {[%clk 0:01:43]} 37. Rxf8+ {[%clk 0:00:36]}  Bxf8 {[%clk 0:01:44]} 38. Qf6+ {[%clk 0:00:37]}  Rg7 {[%clk 0:01:43]} 39. Qxd8 {[%clk 0:00:36]}  Rxg3+ {[%clk 0:01:44]} 40. Kh2 {[%clk 0:00:30]}  Rg8 {[%clk 0:01:43]} 41. Qf6+ {[%clk 0:00:30]}  Bg7 {[%clk 0:01:44]} 42. Qxe6 {[%clk 0:00:28]}  Rf8 {[%clk 0:01:42]} 43. Qe4 {[%clk 0:00:27]}  Kg8 {[%clk 0:01:39]} 44. Bb3+ {[%clk 0:00:26]}  Kh8 {[%clk 0:01:39]} 45. Bc2 {[%clk 0:00:26]}  Kg8 {[%clk 0:01:40]} 46. Qg6 {[%clk 0:00:27]}  Rf6 {[%clk 0:01:38]} 47. Bb3+ {[%clk 0:00:27]}  Kf8 {[%clk 0:01:38]} 48. Qh7 {[%clk 0:00:25]}  Rh6 {[%clk 0:01:36]} 49. Qg8+ {[%clk 0:00:25]} 1-0


[Site "https://www.chess.com"]

[Event "Titled Tuesday Blitz June 20 Late 2023"]
[White "Katz, Alexander"]
[Black "Tari, Aryan"]
[WhiteFideId "2039796"]
[BlackFideId "1510045"]
[WhiteElo "2389"]
[BlackElo "2586"]
[Result "0-1"]
[Round "3"]
[TimeControl "180+2"]
[Date "2023.06.20"]
[WhiteClock "0:00:05"]
[BlackClock "0:00:06"]
[Board "20"]

1. e4 {[%clk 0:03:00]}  e5 {[%clk 0:02:56]} 2. Nf3 {[%clk 0:03:01]}  Nc6 {[%clk 0:02:56]} 3. Bb5 {[%clk 0:03:01]}  Nge7 {[%clk 0:02:56]} 4. c3 {[%clk 0:03:00]}  d5 {[%clk 0:02:54]} 5. d4 {[%clk 0:02:23]}  exd4 {[%clk 0:02:45]} 6. Qxd4 {[%clk 0:02:09]}  dxe4 {[%clk 0:02:12]} 7. Qxe4 {[%clk 0:02:03]}  Bf5 {[%clk 0:02:11]} 8. Qe2 {[%clk 0:01:49]}  Qd6 {[%clk 0:02:09]} 9. Nd4 {[%clk 0:01:47]}  Bd7 {[%clk 0:02:07]} 10. Bxc6 {[%clk 0:01:43]}  Bxc6 {[%clk 0:02:05]} 11. Nxc6 {[%clk 0:01:23]}  Qxc6 {[%clk 0:02:06]} 12. O-O {[%clk 0:01:23]}  O-O-O {[%clk 0:02:06]} 13. Nd2 {[%clk 0:01:20]}  Ng6 {[%clk 0:01:57]} 14. Nf3 {[%clk 0:01:18]}  Bc5 {[%clk 0:01:53]} 15. b4 {[%clk 0:00:55]}  Rhe8 {[%clk 0:01:51]} 16. Qc2 {[%clk 0:00:49]}  Bd6 {[%clk 0:01:41]} 17. Be3 {[%clk 0:00:46]}  Kb8 {[%clk 0:01:33]} 18. Rab1 {[%clk 0:00:44]}  Bf4 {[%clk 0:01:28]} 19. Nd4 {[%clk 0:00:39]}  Qc4 {[%clk 0:01:24]} 20. Bxf4 {[%clk 0:00:33]}  Nxf4 {[%clk 0:01:25]} 21. Qxh7 {[%clk 0:00:26]}  Qd5 {[%clk 0:00:54]} 22. Nf3 {[%clk 0:00:23]}  Rh8 {[%clk 0:00:46]} 23. Qc2 {[%clk 0:00:20]}  Qh5 {[%clk 0:00:42]} 24. Rbd1 {[%clk 0:00:19]}  Qg4 {[%clk 0:00:29]} 25. Rxd8+ {[%clk 0:00:16]}  Rxd8 {[%clk 0:00:29]} 26. Ne1 {[%clk 0:00:14]}  Ne2+ {[%clk 0:00:29]} 27. Kh1 {[%clk 0:00:14]}  Rh8 {[%clk 0:00:30]} 28. Qd3 {[%clk 0:00:07]}  Nf4 {[%clk 0:00:17]} 29. Qg3 {[%clk 0:00:07]}  Qe2 {[%clk 0:00:12]} 30. Rg1 {[%clk 0:00:07]}  Qe4 {[%clk 0:00:12]} 31. Nf3 {[%clk 0:00:06]}  Ne2 {[%clk 0:00:12]} 32. Qxg7 {[%clk 0:00:07]}  Rd8 {[%clk 0:00:11]} 33. Re1 {[%clk 0:00:07]}  Qd3 {[%clk 0:00:09]} 34. Qf6 {[%clk 0:00:07]}  Nxc3 {[%clk 0:00:06]} 35. Ne5 {[%clk 0:00:07]}  Qd2 {[%clk 0:00:06]} 36. Rg1 {[%clk 0:00:05]}  Ne4 {[%clk 0:00:06]} 37. Qe7 {[%clk 0:00:05]}  Nxf2# {[%clk 0:00:06]} 0-1


[Site "https://www.chess.com"]

[Event "Titled Tuesday Blitz June 20 Late 2023"]
[White "Martinez Ramirez, Lennis"]
[Black "Sanal, Vahap"]
[WhiteFideId "3509079"]
[BlackFideId "6300545"]
[WhiteElo "2410"]
[BlackElo "2606"]
[Result "0-1"]
[Round "3"]
[TimeControl "180+2"]
[Date "2023.06.20"]
[WhiteClock "0:00:02"]
[BlackClock "0:01:44"]
[Board "22"]

1. Nf3 {[%clk 0:03:00]}  d5 {[%clk 0:02:58]} 2. c4 {[%clk 0:03:01]}  c6 {[%clk 0:02:59]} 3. b3 {[%clk 0:02:59]}  Nf6 {[%clk 0:02:59]} 4. Bb2 {[%clk 0:02:58]}  Bf5 {[%clk 0:02:56]} 5. d3 {[%clk 0:02:55]}  e6 {[%clk 0:02:57]} 6. Nh4 {[%clk 0:02:42]}  Bg6 {[%clk 0:02:52]} 7. Nxg6 {[%clk 0:02:41]}  hxg6 {[%clk 0:02:52]} 8. g3 {[%clk 0:02:41]}  Qa5+ {[%clk 0:02:38]} 9. Bc3 {[%clk 0:02:31]}  Bb4 {[%clk 0:02:37]} 10. Qd2 {[%clk 0:02:32]}  Bxc3 {[%clk 0:02:38]} 11. Nxc3 {[%clk 0:02:29]}  d4 {[%clk 0:02:34]} 12. Ne4 {[%clk 0:02:24]}  Qe5 {[%clk 0:02:34]} 13. Bg2 {[%clk 0:02:18]}  Nxe4 {[%clk 0:02:34]} 14. Bxe4 {[%clk 0:02:19]}  Nd7 {[%clk 0:02:34]} 15. Qb4 {[%clk 0:02:16]}  Nc5 {[%clk 0:02:31]} 16. f4 {[%clk 0:02:09]}  Qd6 {[%clk 0:02:31]} 17. Qd2 {[%clk 0:02:00]}  a5 {[%clk 0:02:26]} 18. Bf3 {[%clk 0:02:00]}  f5 {[%clk 0:02:21]} 19. Rb1 {[%clk 0:01:59]}  Kf7 {[%clk 0:02:21]} 20. a3 {[%clk 0:01:47]}  e5 {[%clk 0:02:21]} 21. b4 {[%clk 0:01:42]}  axb4 {[%clk 0:02:21]} 22. axb4 {[%clk 0:01:42]}  Na4 {[%clk 0:02:22]} 23. c5 {[%clk 0:01:34]}  Qe6 {[%clk 0:02:19]} 24. fxe5 {[%clk 0:01:27]}  Nc3 {[%clk 0:02:19]} 25. Rc1 {[%clk 0:01:26]}  Qxe5 {[%clk 0:02:20]} 26. Qf4 {[%clk 0:00:56]}  Qxf4 {[%clk 0:02:20]} 27. gxf4 {[%clk 0:00:57]}  Rh4 {[%clk 0:02:20]} 28. O-O {[%clk 0:00:45]}  Kf6 {[%clk 0:02:13]} 29. e3 {[%clk 0:00:43]}  Na2 {[%clk 0:02:07]} 30. Ra1 {[%clk 0:00:39]}  dxe3 {[%clk 0:02:07]} 31. Bd1 {[%clk 0:00:31]}  Ra6 {[%clk 0:02:05]} 32. b5 {[%clk 0:00:22]}  cxb5 {[%clk 0:02:03]} 33. d4 {[%clk 0:00:22]}  Nc3 {[%clk 0:01:56]} 34. Bf3 {[%clk 0:00:19]}  e2 {[%clk 0:01:47]} 35. Rfc1 {[%clk 0:00:06]}  Rxa1 {[%clk 0:01:45]} 36. Rxa1 {[%clk 0:00:06]}  Rxf4 {[%clk 0:01:46]} 37. Bxb7 {[%clk 0:00:05]}  Nd1 {[%clk 0:01:47]} 38. Kg2 {[%clk 0:00:02]}  e1=Q {[%clk 0:01:47]} 39. Ra6+ {[%clk 0:00:02]}  Kg5 {[%clk 0:01:44]} 40. Re6 {[%clk 0:00:02]} 0-1


[Site "https://www.chess.com"]

[Event "Titled Tuesday Blitz June 20 Late 2023"]
[White "Baskakov, Egor"]
[Black "TimGrutter03"]
[WhiteFideId "24197866"]
[WhiteElo "2225"]
[BlackElo "2596"]
[Result "0-1"]
[Round "3"]
[TimeControl "180+2"]
[Date "2023.06.20"]
[WhiteClock "0:01:10"]
[BlackClock "0:00:05"]
[Board "27"]

1. e4 {[%clk 0:03:00]}  c6 {[%clk 0:03:00]} 2. d4 {[%clk 0:03:00]}  d5 {[%clk 0:03:00]} 3. e5 {[%clk 0:03:01]}  c5 {[%clk 0:03:00]} 4. c4 {[%clk 0:03:00]}  cxd4 {[%clk 0:02:52]} 5. Nf3 {[%clk 0:03:00]}  Nc6 {[%clk 0:02:46]} 6. Nxd4 {[%clk 0:03:00]}  dxc4 {[%clk 0:02:44]} 7. Nxc6 {[%clk 0:03:00]}  Qxd1+ {[%clk 0:02:43]} 8. Kxd1 {[%clk 0:03:01]}  bxc6 {[%clk 0:02:43]} 9. Bxc4 {[%clk 0:03:01]}  Bf5 {[%clk 0:02:38]} 10. Ke2 {[%clk 0:02:59]}  e6 {[%clk 0:02:35]} 11. Nc3 {[%clk 0:02:58]}  Bb4 {[%clk 0:02:27]} 12. Be3 {[%clk 0:02:56]}  Ne7 {[%clk 0:02:27]} 13. Rac1 {[%clk 0:02:56]}  Nd5 {[%clk 0:02:26]} 14. Nxd5 {[%clk 0:02:55]}  cxd5 {[%clk 0:02:04]} 15. Bb5+ {[%clk 0:02:55]}  Kd8 {[%clk 0:02:05]} 16. Bg5+ {[%clk 0:02:53]}  Be7 {[%clk 0:01:58]} 17. Bxe7+ {[%clk 0:02:52]}  Kxe7 {[%clk 0:01:59]} 18. Rc7+ {[%clk 0:02:52]}  Kf8 {[%clk 0:01:57]} 19. Rhc1 {[%clk 0:02:48]}  g6 {[%clk 0:01:54]} 20. Rb7 {[%clk 0:02:47]}  Kg7 {[%clk 0:01:42]} 21. Rcc7 {[%clk 0:02:47]}  Rhf8 {[%clk 0:01:42]} 22. Rxa7 {[%clk 0:02:47]}  Rxa7 {[%clk 0:01:38]} 23. Rxa7 {[%clk 0:02:48]}  Rc8 {[%clk 0:01:39]} 24. Bd3 {[%clk 0:02:47]}  Rc1 {[%clk 0:01:30]} 25. Rb7 {[%clk 0:02:36]}  Ra1 {[%clk 0:01:20]} 26. a3 {[%clk 0:02:30]}  Ra2 {[%clk 0:01:13]} 27. f3 {[%clk 0:02:25]}  h5 {[%clk 0:01:09]} 28. h4 {[%clk 0:02:24]}  Kf8 {[%clk 0:01:00]} 29. Ke3 {[%clk 0:02:21]}  Ra1 {[%clk 0:00:50]} 30. Bxf5 {[%clk 0:02:15]}  gxf5 {[%clk 0:00:45]} 31. Ra7 {[%clk 0:02:16]}  Re1+ {[%clk 0:00:26]} 32. Kd4 {[%clk 0:02:00]}  Rd1+ {[%clk 0:00:25]} 33. Ke3 {[%clk 0:02:00]}  Re1+ {[%clk 0:00:25]} 34. Kd3 {[%clk 0:02:01]}  Rxe5 {[%clk 0:00:19]} 35. b4 {[%clk 0:02:01]}  Re1 {[%clk 0:00:20]} 36. a4 {[%clk 0:02:00]}  e5 {[%clk 0:00:17]} 37. b5 {[%clk 0:02:00]}  Rb1 {[%clk 0:00:15]} 38. Rb7 {[%clk 0:01:59]}  e4+ {[%clk 0:00:11]} 39. fxe4 {[%clk 0:01:56]}  fxe4+ {[%clk 0:00:12]} 40. Kc2 {[%clk 0:01:48]}  Ra1 {[%clk 0:00:09]} 41. Ra7 {[%clk 0:01:47]}  d4 {[%clk 0:00:07]} 42. b6 {[%clk 0:01:47]}  d3+ {[%clk 0:00:06]} 43. Kb2 {[%clk 0:01:36]}  d2 {[%clk 0:00:06]} 44. b7 {[%clk 0:01:13]}  Rb1+ {[%clk 0:00:05]} 45. Kxb1 {[%clk 0:01:11]}  d1=Q+ {[%clk 0:00:05]} 46. Kb2 {[%clk 0:01:11]}  Qd2+ {[%clk 0:00:05]} 47. Kb1 {[%clk 0:01:10]}  Qd1+ {[%clk 0:00:03]} 48. Kb2 {[%clk 0:01:10]}  Qd2+ {[%clk 0:00:04]} 49. Kb1 {[%clk 0:01:11]}  Qd3+ {[%clk 0:00:05]} 50. Kb2 {[%clk 0:01:11]}  Qd4+ {[%clk 0:00:04]} 51. Ka3 {[%clk 0:01:10]}  Qxa7 {[%clk 0:00:05]} 0-1


[Site "https://www.chess.com"]

[Event "Titled Tuesday Blitz June 20 Late 2023"]
[White "Grigoriants, Sergey"]
[Black "Storme, Isak"]
[WhiteFideId "4130804"]
[BlackFideId "1728113"]
[WhiteElo "2502"]
[BlackElo "2327"]
[Result "1-0"]
[Round "3"]
[TimeControl "180+2"]
[Date "2023.06.20"]
[WhiteClock "0:00:18"]
[BlackClock "0:00:39"]
[Board "28"]

1. d4 {[%clk 0:02:53]}  d5 {[%clk 0:02:55]} 2. c4 {[%clk 0:02:53]}  e6 {[%clk 0:02:55]} 3. Nf3 {[%clk 0:02:53]}  a6 {[%clk 0:02:54]} 4. c5 {[%clk 0:02:41]}  b6 {[%clk 0:02:47]} 5. cxb6 {[%clk 0:02:37]}  cxb6 {[%clk 0:02:48]} 6. Bf4 {[%clk 0:02:36]}  Nc6 {[%clk 0:02:46]} 7. Nc3 {[%clk 0:02:35]}  Bd6 {[%clk 0:02:42]} 8. e3 {[%clk 0:02:36]}  Bxf4 {[%clk 0:02:37]} 9. exf4 {[%clk 0:02:36]}  Qd6 {[%clk 0:02:38]} 10. Qd2 {[%clk 0:02:29]}  Nf6 {[%clk 0:02:34]} 11. Bd3 {[%clk 0:02:29]}  Bb7 {[%clk 0:02:30]} 12. O-O {[%clk 0:02:27]}  Nb4 {[%clk 0:02:23]} 13. Ne5 {[%clk 0:01:48]}  Nxd3 {[%clk 0:02:15]} 14. Qxd3 {[%clk 0:01:47]}  O-O {[%clk 0:02:12]} 15. f3 {[%clk 0:01:39]}  Rfc8 {[%clk 0:02:09]} 16. Rae1 {[%clk 0:01:37]}  Qb4 {[%clk 0:01:58]} 17. Rf2 {[%clk 0:01:35]}  a5 {[%clk 0:01:58]} 18. g4 {[%clk 0:01:18]}  Ba6 {[%clk 0:01:56]} 19. Qe3 {[%clk 0:01:19]}  Ne8 {[%clk 0:01:40]} 20. f5 {[%clk 0:01:07]}  exf5 {[%clk 0:01:35]} 21. Nxd5 {[%clk 0:01:07]}  Qd6 {[%clk 0:01:23]} 22. Nc6 {[%clk 0:00:55]}  Kh8 {[%clk 0:01:07]} 23. Nxb6 {[%clk 0:00:39]}  Qxc6 {[%clk 0:01:04]} 24. d5 {[%clk 0:00:39]}  Qb7 {[%clk 0:00:57]} 25. Nxc8 {[%clk 0:00:24]}  Qxc8 {[%clk 0:00:57]} 26. Rc2 {[%clk 0:00:22]}  Qd8 {[%clk 0:00:48]} 27. Qe7 {[%clk 0:00:18]}  fxg4 {[%clk 0:00:39]} 28. Qf8# {[%clk 0:00:18]} 1-0


[Site "https://www.chess.com"]

[Event "Titled Tuesday Blitz June 20 Late 2023"]
[White "Beerdsen, Thomas"]
[Black "Mendez Fortes, Eduardo Jesus"]
[WhiteFideId "1030108"]
[BlackFideId "3502376"]
[WhiteElo "2553"]
[BlackElo "2307"]
[Result "1-0"]
[Round "3"]
[TimeControl "180+2"]
[Date "2023.06.20"]
[WhiteClock "0:01:30"]
[BlackClock "0:00:14"]
[Board "29"]

1. e4 {[%clk 0:03:00]}  e5 {[%clk 0:02:59]} 2. Bc4 {[%clk 0:03:00]}  Nf6 {[%clk 0:02:59]} 3. d3 {[%clk 0:03:01]}  c6 {[%clk 0:02:59]} 4. Nf3 {[%clk 0:03:00]}  Be7 {[%clk 0:02:59]} 5. Bb3 {[%clk 0:03:01]}  O-O {[%clk 0:02:58]} 6. Nbd2 {[%clk 0:02:59]}  d6 {[%clk 0:02:57]} 7. h3 {[%clk 0:02:58]}  Nbd7 {[%clk 0:02:57]} 8. c3 {[%clk 0:02:58]}  a5 {[%clk 0:02:56]} 9. O-O {[%clk 0:02:54]}  h6 {[%clk 0:02:54]} 10. Re1 {[%clk 0:02:54]}  Re8 {[%clk 0:02:54]} 11. Nf1 {[%clk 0:02:54]}  Bf8 {[%clk 0:02:54]} 12. Ng3 {[%clk 0:02:52]}  d5 {[%clk 0:02:48]} 13. Be3 {[%clk 0:02:39]}  Qc7 {[%clk 0:02:11]} 14. Qe2 {[%clk 0:02:23]}  a4 {[%clk 0:02:04]} 15. Bc2 {[%clk 0:02:23]}  g6 {[%clk 0:01:58]} 16. Rad1 {[%clk 0:02:21]}  Bg7 {[%clk 0:01:56]} 17. Qd2 {[%clk 0:02:16]}  Kh7 {[%clk 0:01:55]} 18. d4 {[%clk 0:02:05]}  Nxe4 {[%clk 0:01:52]} 19. Nxe4 {[%clk 0:02:02]}  dxe4 {[%clk 0:01:52]} 20. Bxe4 {[%clk 0:02:03]}  f5 {[%clk 0:01:51]} 21. Bb1 {[%clk 0:02:02]}  e4 {[%clk 0:01:51]} 22. Nh2 {[%clk 0:01:53]}  Nb6 {[%clk 0:01:46]} 23. Bf4 {[%clk 0:01:51]}  Qf7 {[%clk 0:01:43]} 24. f3 {[%clk 0:01:49]}  Nc4 {[%clk 0:01:12]} 25. Qf2 {[%clk 0:01:43]}  exf3 {[%clk 0:01:04]} 26. Rxe8 {[%clk 0:01:43]}  Qxe8 {[%clk 0:01:02]} 27. Nxf3 {[%clk 0:01:43]}  Be6 {[%clk 0:01:01]} 28. Re1 {[%clk 0:01:41]}  Qd7 {[%clk 0:00:51]} 29. Qh4 {[%clk 0:01:41]}  Re8 {[%clk 0:00:40]} 30. b3 {[%clk 0:01:41]}  Nb6 {[%clk 0:00:38]} 31. Ne5 {[%clk 0:01:28]}  Qe7 {[%clk 0:00:28]} 32. Nxg6 {[%clk 0:01:29]}  Kxg6 {[%clk 0:00:17]} 33. Bxf5+ {[%clk 0:01:28]}  Kxf5 {[%clk 0:00:14]} 34. Qg4+ {[%clk 0:01:29]}  Kf6 {[%clk 0:00:14]} 35. Be5+ {[%clk 0:01:29]}  Kf7 {[%clk 0:00:14]} 36. Qxg7# {[%clk 0:01:30]} 1-0


[Site "https://www.chess.com"]